[Event "Early-Titled-Tuesday-Blitz-March-19-2024"]
[Site "Chess.com"]
[Date "2024.03.19"]
[Round "11"]
[White "Chessbard1972"]
[Black "EternalNight8"]
[Result "1/2-1/2"]
[WhiteElo "2329"]
[BlackElo "2481"]
[TimeControl "180+1"]
[EndTime "10:06:53 PDT"]
[Termination "Game drawn - insufficient material"]

1. d4 {[%clk 0:03:00.9]} 1... Nf6 {[%clk 0:02:59.3]} 2. c4 {[%clk 0:03:00.1]}
2... e6 {[%clk 0:02:59.7]} 3. Nf3 {[%clk 0:02:59.2]} 3... Bb4+ {[%clk 0:02:59]}
4. Nbd2 {[%clk 0:02:56.5]} 4... a5 {[%clk 0:02:58.5]} 5. a3 {[%clk 0:02:55.6]}
5... Be7 {[%clk 0:02:55.6]} 6. b3 {[%clk 0:02:54.4]} 6... d5 {[%clk 0:02:48.3]}
7. Bb2 {[%clk 0:02:53]} 7... O-O {[%clk 0:02:47.3]} 8. e3 {[%clk 0:02:52.7]}
8... b6 {[%clk 0:02:45.9]} 9. Bd3 {[%clk 0:02:52]} 9... Bb7 {[%clk 0:02:45.6]}
10. O-O {[%clk 0:02:50.9]} 10... Nbd7 {[%clk 0:02:43.5]} 11. Qe2 {[%clk
0:02:50.5]} 11... c5 {[%clk 0:02:39.9]} 12. Ne5 {[%clk 0:02:49.7]} 12... Nxe5
{[%clk 0:02:29.6]} 13. dxe5 {[%clk 0:02:43]} 13... Nd7 {[%clk 0:02:30]} 14. f4
{[%clk 0:02:38.9]} 14... f5 {[%clk 0:02:21.8]} 15. g4 {[%clk 0:02:31.7]} 15...
g6 {[%clk 0:02:14.5]} 16. Nf3 {[%clk 0:02:10.5]} 16... Qc7 {[%clk 0:01:52]} 17.
Rf2 {[%clk 0:01:56.9]} 17... Kh8 {[%clk 0:01:44.6]} 18. Rg2 {[%clk 0:01:54]}
18... Qc6 {[%clk 0:01:32.8]} 19. Rf1 {[%clk 0:01:45.1]} 19... Rg8 {[%clk
0:01:10.6]} 20. Kf2 {[%clk 0:01:43.4]} 20... a4 {[%clk 0:00:50.5]} 21. bxa4
{[%clk 0:01:37.8]} 21... Rxa4 {[%clk 0:00:41.2]} 22. gxf5 {[%clk 0:01:27.9]}
22... dxc4 {[%clk 0:00:34.8]} 23. Bc2 {[%clk 0:01:24.9]} 23... Raa8 {[%clk
0:00:29.9]} 24. fxg6 {[%clk 0:01:14.7]} 24... hxg6 {[%clk 0:00:29.5]} 25. Bxg6
{[%clk 0:01:10.5]} 25... Rg7 {[%clk 0:00:21.2]} 26. f5 {[%clk 0:00:59.2]} 26...
Rag8 {[%clk 0:00:20.3]} 27. Rg3 {[%clk 0:00:50.6]} 27... Rxg6 {[%clk 0:00:15.5]}
28. fxg6 {[%clk 0:00:48.2]} 28... Kg7 {[%clk 0:00:15.6]} 29. Rh3 {[%clk
0:00:36.3]} 29... Nf8 {[%clk 0:00:15.9]} 30. Ke1 {[%clk 0:00:26.1]} 30... Qe4
{[%clk 0:00:15.4]} 31. Nd2 {[%clk 0:00:23.2]} 31... Qxg6 {[%clk 0:00:12.2]} 32.
Rg3 {[%clk 0:00:20.4]} 32... Bh4 {[%clk 0:00:12.4]} 33. Rg1 {[%clk 0:00:19.2]}
33... Kh8 {[%clk 0:00:09.5]} 34. Kd1 {[%clk 0:00:12.8]} 34... Bxg3 {[%clk
0:00:09.5]} 35. Rxg3 {[%clk 0:00:13]} 35... Qh7 {[%clk 0:00:09.9]} 36. Nf1
{[%clk 0:00:08.9]} 36... Rxg3 {[%clk 0:00:09.4]} 37. Nxg3 {[%clk 0:00:09.2]}
37... Qb1+ {[%clk 0:00:08.6]} 38. Kd2 {[%clk 0:00:08.4]} 38... Qxb2+ {[%clk
0:00:08.3]} 39. Ke1 {[%clk 0:00:09.1]} 39... Qxe2+ {[%clk 0:00:08.4]} 40. Kxe2
{[%clk 0:00:09.9]} 40... c3 {[%clk 0:00:07.3]} 41. Kd3 {[%clk 0:00:09.9]} 41...
Bd5 {[%clk 0:00:07.2]} 42. Kxc3 {[%clk 0:00:10.6]} 42... Nd7 {[%clk 0:00:07.6]}
43. e4 {[%clk 0:00:11]} 43... Bc6 {[%clk 0:00:08]} 44. Kd3 {[%clk 0:00:10.6]}
44... Nxe5+ {[%clk 0:00:08.4]} 45. Ke3 {[%clk 0:00:11.1]} 45... Ng4+ {[%clk
0:00:08]} 46. Kf4 {[%clk 0:00:12]} 46... Nxh2 {[%clk 0:00:08.6]} 47. Nh5 {[%clk
0:00:12]} 47... Bb5 {[%clk 0:00:07.7]} 48. Ke5 {[%clk 0:00:12.9]} 48... Nf1
{[%clk 0:00:07.2]} 49. Kxe6 {[%clk 0:00:13.1]} 49... Ne3 {[%clk 0:00:07.3]} 50.
e5 {[%clk 0:00:13.3]} 50... Bc4+ {[%clk 0:00:07.6]} 51. Kd6 {[%clk 0:00:12.9]}
51... Nf5+ {[%clk 0:00:07.2]} 52. Kc6 {[%clk 0:00:13.3]} 52... b5 {[%clk
0:00:06.2]} 53. Kxc5 {[%clk 0:00:13.4]} 53... Ng7 {[%clk 0:00:05.7]} 54. a4
{[%clk 0:00:14.3]} 54... Nxh5 {[%clk 0:00:05.2]} 55. axb5 {[%clk 0:00:14.7]}
55... Bxb5 {[%clk 0:00:05.7]} 56. Kxb5 {[%clk 0:00:14.7]} 56... Kg7 {[%clk
0:00:06.4]} 57. e6 {[%clk 0:00:15.3]} 57... Kf6 {[%clk 0:00:06.4]} 58. e7 {[%clk
0:00:16.2]} 58... Kxe7 {[%clk 0:00:07]} 1/2-1/2

[Event "Early-Titled-Tuesday-Blitz-March-19-2024"]
[Site "Chess.com"]
[Date "2024.03.19"]
[Round "11"]
[White "Ati1517"]
[Black "KorolDimitriy75"]
[Result "1-0"]
[WhiteElo "2241"]
[BlackElo "2382"]
[TimeControl "180+1"]
[EndTime "10:06:53 PDT"]
[Termination "Ati1517 won on time"]

1. e4 {[%clk 0:03:00.9]} 1... c5 {[%clk 0:03:00.1]} 2. Nf3 {[%clk 0:02:59.7]}
2... d6 {[%clk 0:03:00.4]} 3. d4 {[%clk 0:03:00.1]} 3... cxd4 {[%clk 0:03:01.3]}
4. Nxd4 {[%clk 0:03:00.2]} 4... Nf6 {[%clk 0:03:01.7]} 5. Nc3 {[%clk 0:03:00.5]}
5... g6 {[%clk 0:03:02.6]} 6. Bc4 {[%clk 0:02:59.3]} 6... Bg7 {[%clk 0:03:02.7]}
7. O-O {[%clk 0:02:59.6]} 7... O-O {[%clk 0:03:02.8]} 8. f3 {[%clk 0:02:58.4]}
8... Nc6 {[%clk 0:03:02.2]} 9. Be3 {[%clk 0:02:58.8]} 9... Bd7 {[%clk
0:03:01.8]} 10. Qd2 {[%clk 0:02:59]} 10... Rc8 {[%clk 0:02:53.7]} 11. Bb3 {[%clk
0:02:56.5]} 11... Qa5 {[%clk 0:02:41.9]} 12. Rad1 {[%clk 0:02:49]} 12... Rfe8
{[%clk 0:02:39.4]} 13. Rfe1 {[%clk 0:02:23.1]} 13... a6 {[%clk 0:02:24.3]} 14.
a4 {[%clk 0:01:58.3]} 14... Ne5 {[%clk 0:02:09.1]} 15. Nd5 {[%clk 0:01:39.7]}
15... Qxd2 {[%clk 0:02:06.9]} 16. Rxd2 {[%clk 0:01:40.6]} 16... Nxd5 {[%clk
0:02:04.2]} 17. Bxd5 {[%clk 0:01:40.7]} 17... Bxa4 {[%clk 0:01:14.3]} 18. Bxb7
{[%clk 0:01:32.8]} 18... Rb8 {[%clk 0:01:13.9]} 19. Bxa6 {[%clk 0:01:25]} 19...
Rxb2 {[%clk 0:01:13.7]} 20. Ra1 {[%clk 0:01:17.6]} 20... Bd7 {[%clk 0:01:11]}
21. c3 {[%clk 0:01:12.9]} 21... Reb8 {[%clk 0:00:58]} 22. Ra2 {[%clk 0:01:03.8]}
22... Rb1+ {[%clk 0:00:53.3]} 23. Kf2 {[%clk 0:01:03.8]} 23... h5 {[%clk
0:00:47.5]} 24. h3 {[%clk 0:01:03.7]} 24... h4 {[%clk 0:00:47.5]} 25. f4 {[%clk
0:01:02.6]} 25... Nc6 {[%clk 0:00:45]} 26. Bc4 {[%clk 0:01:01.2]} 26... Bf6
{[%clk 0:00:42.7]} 27. Bd5 {[%clk 0:00:40.6]} 27... Rc8 {[%clk 0:00:38.5]} 28.
c4 {[%clk 0:00:36.9]} 28... Nxd4 {[%clk 0:00:30]} 29. Bxd4 {[%clk 0:00:37.2]}
29... Bxd4+ {[%clk 0:00:27.9]} 30. Rxd4 {[%clk 0:00:38.1]} 30... e6 {[%clk
0:00:23.1]} 31. Ra7 {[%clk 0:00:37.4]} 31... Be8 {[%clk 0:00:20.1]} 32. Bxe6
{[%clk 0:00:37.6]} 32... fxe6 {[%clk 0:00:19.3]} 33. Rxd6 {[%clk 0:00:37.5]}
33... Rb2+ {[%clk 0:00:18.3]} 34. Ke3 {[%clk 0:00:35.2]} 34... Rxg2 {[%clk
0:00:17.6]} 35. Rxe6 {[%clk 0:00:35.4]} 35... Rg3+ {[%clk 0:00:16.6]} 36. Kd4
{[%clk 0:00:35]} 36... Rxh3 {[%clk 0:00:13.4]} 37. Rae7 {[%clk 0:00:35]} 37...
Bf7 {[%clk 0:00:13]} 38. Rf6 {[%clk 0:00:33.8]} 38... Rf8 {[%clk 0:00:12.8]} 39.
c5 {[%clk 0:00:29.8]} 39... Rh1 {[%clk 0:00:12.6]} 40. c6 {[%clk 0:00:29.5]}
40... Rc1 {[%clk 0:00:11.9]} 41. f5 {[%clk 0:00:28.5]} 41... Kg7 {[%clk
0:00:08.1]} 42. e5 {[%clk 0:00:25.2]} 42... gxf5 {[%clk 0:00:07.6]} 43. Rxf5
{[%clk 0:00:23.7]} 43... Rxc6 {[%clk 0:00:06.9]} 44. Ke4 {[%clk 0:00:18.8]}
44... h3 {[%clk 0:00:05]} 45. Rh5 {[%clk 0:00:18.5]} 45... Rh6 {[%clk 0:00:05]}
46. Rg5+ {[%clk 0:00:13.3]} 46... Rg6 {[%clk 0:00:03.5]} 47. Rh5 {[%clk
0:00:12.9]} 47... Rh8 {[%clk 0:00:02.7]} 48. Rxf7+ {[%clk 0:00:11.1]} 48... Kxf7
{[%clk 0:00:01.2]} 49. Rxh8 {[%clk 0:00:12]} 1-0

[Event "Early-Titled-Tuesday-Blitz-March-19-2024"]
[Site "Chess.com"]
[Date "2024.03.19"]
[Round "11"]
[White "AryanTari"]
[Black "Binary010"]
[Result "1-0"]
[WhiteElo "3024"]
[BlackElo "2864"]
[TimeControl "180+1"]
[EndTime "10:06:55 PDT"]
[Termination "AryanTari won on time"]

1. e4 {[%clk 0:02:56.7]} 1... e5 {[%clk 0:03:00]} 2. Nf3 {[%clk 0:02:51.1]} 2...
Nc6 {[%clk 0:03:00.2]} 3. d4 {[%clk 0:02:51.8]} 3... exd4 {[%clk 0:02:59.9]} 4.
Nxd4 {[%clk 0:02:52.7]} 4... Nf6 {[%clk 0:03:00.4]} 5. Nxc6 {[%clk 0:02:51.7]}
5... bxc6 {[%clk 0:03:01.3]} 6. Nd2 {[%clk 0:02:52.1]} 6... d5 {[%clk
0:02:53.1]} 7. exd5 {[%clk 0:02:52.4]} 7... cxd5 {[%clk 0:02:54]} 8. Bb5+ {[%clk
0:02:52.7]} 8... Bd7 {[%clk 0:02:54.6]} 9. Bxd7+ {[%clk 0:02:53.4]} 9... Qxd7
{[%clk 0:02:54.9]} 10. O-O {[%clk 0:02:54.1]} 10... Be7 {[%clk 0:02:55.1]} 11.
b3 {[%clk 0:02:54.9]} 11... O-O {[%clk 0:02:54.6]} 12. Bb2 {[%clk 0:02:55.6]}
12... Rfe8 {[%clk 0:02:50]} 13. Qf3 {[%clk 0:02:55.2]} 13... Rad8 {[%clk
0:02:44.4]} 14. Rad1 {[%clk 0:02:53.8]} 14... Qg4 {[%clk 0:02:38.1]} 15. Qxg4
{[%clk 0:02:09.5]} 15... Nxg4 {[%clk 0:02:39]} 16. h3 {[%clk 0:02:10.1]} 16...
Bf6 {[%clk 0:02:35.4]} 17. Ba3 {[%clk 0:02:01.2]} 17... Ne5 {[%clk 0:02:30.7]}
18. Bc5 {[%clk 0:01:55.9]} 18... a5 {[%clk 0:02:20]} 19. a4 {[%clk 0:01:55.3]}
19... Nd7 {[%clk 0:02:15.7]} 20. Be3 {[%clk 0:01:55.6]} 20... h6 {[%clk
0:01:35.9]} 21. Nf3 {[%clk 0:01:53.7]} 21... c6 {[%clk 0:01:34.6]} 22. Bd2
{[%clk 0:01:52.2]} 22... Ra8 {[%clk 0:01:32.5]} 23. Rfe1 {[%clk 0:01:52.8]}
23... Ne5 {[%clk 0:01:24.6]} 24. Nxe5 {[%clk 0:01:48.8]} 24... Bxe5 {[%clk
0:01:25.5]} 25. Kf1 {[%clk 0:01:46.2]} 25... Kf8 {[%clk 0:01:21.9]} 26. Re2
{[%clk 0:01:29.5]} 26... Bc7 {[%clk 0:01:18.6]} 27. Be3 {[%clk 0:01:27.6]} 27...
Re6 {[%clk 0:01:01]} 28. Rde1 {[%clk 0:01:27.7]} 28... Ke7 {[%clk 0:00:59.6]}
29. Bd4 {[%clk 0:01:23.3]} 29... g6 {[%clk 0:00:56.1]} 30. g4 {[%clk 0:01:21.3]}
30... Bd6 {[%clk 0:00:52.3]} 31. Be3 {[%clk 0:01:13.4]} 31... h5 {[%clk
0:00:48.5]} 32. Rd1 {[%clk 0:01:03.4]} 32... hxg4 {[%clk 0:00:47]} 33. hxg4
{[%clk 0:01:04.3]} 33... Rb8 {[%clk 0:00:42]} 34. Bd4 {[%clk 0:01:00.1]} 34...
c5 {[%clk 0:00:39]} 35. Bc3 {[%clk 0:00:59.5]} 35... c4 {[%clk 0:00:33.7]} 36.
Rxd5 {[%clk 0:00:48.8]} 36... cxb3 {[%clk 0:00:33.7]} 37. cxb3 {[%clk
0:00:48.9]} 37... Rxb3 {[%clk 0:00:32.5]} 38. Bxa5 {[%clk 0:00:48.5]} 38... Rb1+
{[%clk 0:00:29.9]} 39. Re1 {[%clk 0:00:35.4]} 39... Rexe1+ {[%clk 0:00:23.3]}
40. Bxe1 {[%clk 0:00:36.3]} 40... Ra1 {[%clk 0:00:18.9]} 41. Rd4 {[%clk
0:00:35.7]} 41... Be5 {[%clk 0:00:15.6]} 42. Re4 {[%clk 0:00:35.6]} 42... Kd6
{[%clk 0:00:12.9]} 43. Ke2 {[%clk 0:00:35.6]} 43... Ra2+ {[%clk 0:00:13.7]} 44.
Kd3 {[%clk 0:00:32.5]} 44... f5 {[%clk 0:00:14.3]} 45. gxf5 {[%clk 0:00:32.1]}
45... gxf5 {[%clk 0:00:15.2]} 46. Rb4 {[%clk 0:00:32.4]} 46... Kd5 {[%clk
0:00:13.6]} 47. Rb5+ {[%clk 0:00:32.6]} 47... Ke6 {[%clk 0:00:14.1]} 48. a5
{[%clk 0:00:32.6]} 48... Ra3+ {[%clk 0:00:09.7]} 49. Kc4 {[%clk 0:00:32]} 49...
Ra2 {[%clk 0:00:10.2]} 50. Rb6+ {[%clk 0:00:31]} 50... Kf7 {[%clk 0:00:09.6]}
51. a6 {[%clk 0:00:30.8]} 51... Ra1 {[%clk 0:00:05.3]} 52. Bb4 {[%clk
0:00:29.8]} 52... Ra2 {[%clk 0:00:04.5]} 53. Kb5 {[%clk 0:00:28.1]} 53... Bd4
{[%clk 0:00:04.2]} 54. Rb7+ {[%clk 0:00:28.4]} 54... Ke6 {[%clk 0:00:04.3]} 55.
f3 {[%clk 0:00:28.7]} 55... Ra1 {[%clk 0:00:02.1]} 56. Kc4 {[%clk 0:00:28.2]}
56... Bf2 {[%clk 0:00:02]} 57. Kb5 {[%clk 0:00:27.2]} 57... Bd4 {[%clk
0:00:01.9]} 58. Rc7 {[%clk 0:00:25.9]} 58... Be3 {[%clk 0:00:01.9]} 59. Re7+
{[%clk 0:00:25.7]} 1-0

[Event "Early-Titled-Tuesday-Blitz-March-19-2024"]
[Site "Chess.com"]
[Date "2024.03.19"]
[Round "11"]
[White "SharapovEvgeny"]
[Black "Kirill_Klukin"]
[Result "1-0"]
[WhiteElo "2585"]
[BlackElo "2774"]
[TimeControl "180+1"]
[EndTime "10:06:55 PDT"]
[Termination "SharapovEvgeny won on time"]

1. e4 {[%clk 0:02:59.7]} 1... c5 {[%clk 0:03:00]} 2. Nf3 {[%clk 0:02:59.5]} 2...
Nc6 {[%clk 0:02:59.9]} 3. d4 {[%clk 0:02:59.6]} 3... cxd4 {[%clk 0:03:00.8]} 4.
Nxd4 {[%clk 0:02:59.9]} 4... e5 {[%clk 0:03:01.6]} 5. Nb5 {[%clk 0:02:59.7]}
5... d6 {[%clk 0:03:01.5]} 6. N1c3 {[%clk 0:02:59.5]} 6... a6 {[%clk 0:03:01.4]}
7. Na3 {[%clk 0:02:59.6]} 7... b5 {[%clk 0:03:02.1]} 8. Nd5 {[%clk 0:02:59.5]}
8... Nge7 {[%clk 0:03:02.8]} 9. c4 {[%clk 0:02:59.4]} 9... Nxd5 {[%clk
0:03:03.5]} 10. cxd5 {[%clk 0:02:59.5]} 10... Nd4 {[%clk 0:03:04]} 11. Nc2
{[%clk 0:02:58.2]} 11... Nxc2+ {[%clk 0:03:01.5]} 12. Qxc2 {[%clk 0:02:58.1]}
12... Bd7 {[%clk 0:03:02.4]} 13. Bd3 {[%clk 0:02:57.2]} 13... Be7 {[%clk
0:03:01.9]} 14. O-O {[%clk 0:02:57]} 14... O-O {[%clk 0:03:02.6]} 15. f4 {[%clk
0:02:56.5]} 15... Rc8 {[%clk 0:02:56.1]} 16. Qe2 {[%clk 0:02:55.8]} 16... exf4
{[%clk 0:02:55]} 17. Bxf4 {[%clk 0:02:55.2]} 17... Bf6 {[%clk 0:02:55.6]} 18.
Kh1 {[%clk 0:02:52.3]} 18... Qe7 {[%clk 0:02:53.1]} 19. Rac1 {[%clk 0:02:46.2]}
19... Be5 {[%clk 0:02:52.7]} 20. Bxe5 {[%clk 0:02:41.7]} 20... Qxe5 {[%clk
0:02:52.4]} 21. b4 {[%clk 0:02:36.3]} 21... g6 {[%clk 0:02:41.6]} 22. a3 {[%clk
0:02:31.8]} 22... Rxc1 {[%clk 0:02:25.3]} 23. Rxc1 {[%clk 0:02:31.1]} 23... Rc8
{[%clk 0:02:26.2]} 24. Rxc8+ {[%clk 0:01:45.8]} 24... Bxc8 {[%clk 0:02:27.1]}
25. h3 {[%clk 0:01:45.7]} 25... Qa1+ {[%clk 0:02:14.1]} 26. Kh2 {[%clk
0:01:45.6]} 26... Qxa3 {[%clk 0:02:14.3]} 27. Qc2 {[%clk 0:01:45.7]} 27... Bd7
{[%clk 0:02:11.8]} 28. Qc7 {[%clk 0:01:42.8]} 28... Be8 {[%clk 0:01:41.5]} 29.
Qd8 {[%clk 0:01:32.1]} 29... Qxd3 {[%clk 0:01:31]} 30. Qxe8+ {[%clk 0:01:31.8]}
30... Kg7 {[%clk 0:01:31.7]} 31. Qe7 {[%clk 0:01:27.1]} 31... Qd4 {[%clk
0:01:21.9]} 32. Qxd6 {[%clk 0:01:22.7]} 32... Qxe4 {[%clk 0:01:22.5]} 33. Qd8
{[%clk 0:01:16.6]} 33... Qe5+ {[%clk 0:01:19.6]} 34. Kh1 {[%clk 0:01:16.6]}
34... Qa1+ {[%clk 0:01:20]} 35. Kh2 {[%clk 0:01:16.6]} 35... Qf6 {[%clk
0:01:20.9]} 36. Qc7 {[%clk 0:01:05.2]} 36... Qd4 {[%clk 0:01:20.2]} 37. d6
{[%clk 0:01:03]} 37... Qe5+ {[%clk 0:01:15.1]} 38. Kh1 {[%clk 0:01:02.6]} 38...
Qe1+ {[%clk 0:00:29.4]} 39. Kh2 {[%clk 0:01:01.9]} 39... Qe5+ {[%clk 0:00:27.9]}
40. Kh1 {[%clk 0:01:01.8]} 40... Qf4 {[%clk 0:00:09.1]} 41. Qc3+ {[%clk
0:00:52.1]} 41... Qf6 {[%clk 0:00:09.2]} 42. Qd2 {[%clk 0:00:42.8]} 42... Qa1+
{[%clk 0:00:08.9]} 43. Kh2 {[%clk 0:00:40.8]} 43... Qe5+ {[%clk 0:00:09.7]} 44.
g3 {[%clk 0:00:40.9]} 44... Qf6 {[%clk 0:00:03.5]} 45. d7 {[%clk 0:00:39.5]}
45... Qd8 {[%clk 0:00:04.1]} 46. Qd6 {[%clk 0:00:34.3]} 46... h5 {[%clk
0:00:03.6]} 47. h4 {[%clk 0:00:34.3]} 47... Kh7 {[%clk 0:00:01.5]} 48. Qc6
{[%clk 0:00:28.7]} 48... Qe7 {[%clk 0:00:01.6]} 49. Qd5 {[%clk 0:00:22.8]} 49...
Qd8 {[%clk 0:00:01.3]} 50. Qxf7+ {[%clk 0:00:22]} 50... Kh6 {[%clk 0:00:01.8]}
51. Qe8 {[%clk 0:00:20.9]} 51... Qc7 {[%clk 0:00:02.3]} 52. d8=Q {[%clk
0:00:19.7]} 52... Qc2+ {[%clk 0:00:01.5]} 53. Kg1 {[%clk 0:00:20.1]} 53... Qc1+
{[%clk 0:00:01.2]} 54. Kf2 {[%clk 0:00:20.3]} 1-0

[Event "Early-Titled-Tuesday-Blitz-March-19-2024"]
[Site "Chess.com"]
[Date "2024.03.19"]
[Round "11"]
[White "UK_23"]
[Black "TitarovVasiliYouTube"]
[Result "0-1"]
[WhiteElo "2393"]
[BlackElo "2547"]
[TimeControl "180+1"]
[EndTime "10:06:56 PDT"]
[Termination "TitarovVasiliYouTube won on time"]

1. e4 {[%clk 0:02:45.7]} 1... c5 {[%clk 0:03:00]} 2. Nf3 {[%clk 0:02:43.4]} 2...
Nf6 {[%clk 0:03:00.1]} 3. e5 {[%clk 0:02:41.6]} 3... Nd5 {[%clk 0:03:00.4]} 4.
g3 {[%clk 0:02:42.3]} 4... d6 {[%clk 0:03:00.1]} 5. exd6 {[%clk 0:02:41.7]} 5...
Qxd6 {[%clk 0:03:01]} 6. Bg2 {[%clk 0:02:41.2]} 6... Nc6 {[%clk 0:03:01.7]} 7.
O-O {[%clk 0:02:41.3]} 7... e6 {[%clk 0:02:57.1]} 8. d4 {[%clk 0:02:40.5]} 8...
Be7 {[%clk 0:02:52.1]} 9. c4 {[%clk 0:02:35.5]} 9... Nf6 {[%clk 0:02:52.1]} 10.
dxc5 {[%clk 0:02:35]} 10... Qxd1 {[%clk 0:02:51]} 11. Rxd1 {[%clk 0:02:35.9]}
11... Bxc5 {[%clk 0:02:51]} 12. Nc3 {[%clk 0:02:34.8]} 12... a6 {[%clk
0:02:42.1]} 13. b3 {[%clk 0:02:23.4]} 13... Bd7 {[%clk 0:02:40.2]} 14. Bb2
{[%clk 0:02:22.1]} 14... O-O-O {[%clk 0:02:36.4]} 15. Na4 {[%clk 0:02:18.9]}
15... Ba7 {[%clk 0:02:35.5]} 16. Ng5 {[%clk 0:02:14.8]} 16... Rdf8 {[%clk
0:02:23.5]} 17. Ba3 {[%clk 0:02:08.4]} 17... h6 {[%clk 0:02:08]} 18. Bxf8 {[%clk
0:02:05.8]} 18... Rxf8 {[%clk 0:02:08.9]} 19. Ne4 {[%clk 0:02:00.9]} 19... Nxe4
{[%clk 0:02:05]} 20. Bxe4 {[%clk 0:02:01.8]} 20... f5 {[%clk 0:02:04.4]} 21. Bg2
{[%clk 0:02:00.3]} 21... Ne5 {[%clk 0:02:03]} 22. Rd6 {[%clk 0:01:51]} 22... Ng4
{[%clk 0:01:58.7]} 23. c5 {[%clk 0:01:42.7]} 23... Bxa4 {[%clk 0:01:43]} 24.
bxa4 {[%clk 0:01:43.6]} 24... Nxf2 {[%clk 0:01:43.9]} 25. Rxe6 {[%clk
0:01:35.1]} 25... Nd3 {[%clk 0:01:33.1]} 26. Kf1 {[%clk 0:01:26]} 26... Nxc5
{[%clk 0:01:32.5]} 27. Re7 {[%clk 0:01:21.9]} 27... f4 {[%clk 0:01:29.2]} 28.
gxf4 {[%clk 0:01:09.5]} 28... Rxf4+ {[%clk 0:01:30.1]} 29. Ke2 {[%clk
0:01:09.7]} 29... Rxa4 {[%clk 0:00:57.6]} 30. Rxg7 {[%clk 0:00:55.9]} 30... Nb3
{[%clk 0:00:40.1]} 31. Bxb7+ {[%clk 0:00:47]} 31... Kb8 {[%clk 0:00:40.4]} 32.
Rb1 {[%clk 0:00:43.1]} 32... Rxa2+ {[%clk 0:00:40.6]} 33. Kd3 {[%clk 0:00:31.7]}
33... Nc5+ {[%clk 0:00:38.6]} 34. Kc4 {[%clk 0:00:30.3]} 34... Rc2+ {[%clk
0:00:34.5]} 35. Kd5 {[%clk 0:00:28.5]} 35... Rd2+ {[%clk 0:00:34.9]} 36. Ke5
{[%clk 0:00:26.1]} 36... Re2+ {[%clk 0:00:34.4]} 37. Kf5 {[%clk 0:00:19.5]}
37... Rf2+ {[%clk 0:00:33.1]} 38. Kg4 {[%clk 0:00:16.5]} 38... Rf6 {[%clk
0:00:14.5]} 39. Bxa6+ {[%clk 0:00:15.5]} 39... Bb6 {[%clk 0:00:14.1]} 40. Bc4
{[%clk 0:00:13]} 40... Ne4 {[%clk 0:00:11.9]} 41. Rf7 {[%clk 0:00:09.2]} 41...
Rd6 {[%clk 0:00:02.7]} 42. Kf4 {[%clk 0:00:08.4]} 42... Nd2 {[%clk 0:00:03]} 43.
Rb4 {[%clk 0:00:06.7]} 43... Rd4+ {[%clk 0:00:02.4]} 44. Ke3 {[%clk 0:00:04.8]}
44... Nxc4+ {[%clk 0:00:03.3]} 0-1

[Event "Early-Titled-Tuesday-Blitz-March-19-2024"]
[Site "Chess.com"]
[Date "2024.03.19"]
[Round "11"]
[White "Zheenbekov86"]
[Black "RandomNoob04"]
[Result "0-1"]
[WhiteElo "2459"]
[BlackElo "2644"]
[TimeControl "180+1"]
[EndTime "10:06:58 PDT"]
[Termination "RandomNoob04 won on time"]

1. Nf3 {[%clk 0:03:00]} 1... g6 {[%clk 0:02:57.6]} 2. g3 {[%clk 0:02:59.1]} 2...
Bg7 {[%clk 0:02:58.5]} 3. Bg2 {[%clk 0:02:59.5]} 3... e5 {[%clk 0:02:57.5]} 4.
O-O {[%clk 0:02:59]} 4... Ne7 {[%clk 0:02:58.2]} 5. e4 {[%clk 0:02:48.9]} 5...
O-O {[%clk 0:02:57.6]} 6. d3 {[%clk 0:02:48.9]} 6... d5 {[%clk 0:02:56.6]} 7.
exd5 {[%clk 0:02:46.3]} 7... Nxd5 {[%clk 0:02:57.5]} 8. Nbd2 {[%clk 0:02:45.9]}
8... Nc6 {[%clk 0:02:56.1]} 9. Nc4 {[%clk 0:02:45.1]} 9... Nb6 {[%clk
0:02:50.7]} 10. Ncd2 {[%clk 0:02:18.6]} 10... h6 {[%clk 0:02:48]} 11. h3 {[%clk
0:02:18.3]} 11... Be6 {[%clk 0:02:47.9]} 12. Re1 {[%clk 0:02:18.3]} 12... Qd7
{[%clk 0:02:48.1]} 13. Ne4 {[%clk 0:02:17]} 13... Bxh3 {[%clk 0:02:37.5]} 14.
Nc5 {[%clk 0:02:16.8]} 14... Qd5 {[%clk 0:02:20.4]} 15. Bxh3 {[%clk 0:02:11.9]}
15... Qxc5 {[%clk 0:02:20.7]} 16. Bg2 {[%clk 0:02:09.5]} 16... Rad8 {[%clk
0:02:19]} 17. a4 {[%clk 0:02:06.2]} 17... Rfe8 {[%clk 0:02:17.2]} 18. a5 {[%clk
0:02:03.4]} 18... Nd5 {[%clk 0:01:55.6]} 19. Nd2 {[%clk 0:02:03]} 19... Nxa5
{[%clk 0:01:40.9]} 20. Ne4 {[%clk 0:02:02]} 20... Qb6 {[%clk 0:01:40.4]} 21. c4
{[%clk 0:01:44.6]} 21... Nb4 {[%clk 0:01:36.5]} 22. Be3 {[%clk 0:01:44.4]} 22...
Qa6 {[%clk 0:01:28.1]} 23. Nc5 {[%clk 0:01:43.8]} 23... Qf6 {[%clk 0:00:57.7]}
24. Rxa5 {[%clk 0:01:37.9]} 24... b6 {[%clk 0:00:57.9]} 25. Ne4 {[%clk
0:01:29.3]} 25... Qe7 {[%clk 0:00:58.3]} 26. Rxa7 {[%clk 0:01:27.7]} 26... Nxd3
{[%clk 0:00:58.9]} 27. Bxb6 {[%clk 0:01:17.7]} 27... Qb4 {[%clk 0:00:52.7]} 28.
Ba5 {[%clk 0:01:15.1]} 28... Qxb2 {[%clk 0:00:41.6]} 29. Re2 {[%clk 0:01:13.3]}
29... Qb8 {[%clk 0:00:36.1]} 30. Bxc7 {[%clk 0:00:54.3]} 30... Qxa7 {[%clk
0:00:30.7]} 31. Bxd8 {[%clk 0:00:54.2]} 31... Rxd8 {[%clk 0:00:21.8]} 32. Rd2
{[%clk 0:00:54.2]} 32... Qd4 {[%clk 0:00:18.4]} 33. c5 {[%clk 0:00:41.3]} 33...
f5 {[%clk 0:00:18.5]} 34. Nd6 {[%clk 0:00:25.2]} 34... e4 {[%clk 0:00:18.8]} 35.
Qb3+ {[%clk 0:00:24.8]} 35... Kh7 {[%clk 0:00:18]} 36. Nf7 {[%clk 0:00:14.2]}
36... Rc8 {[%clk 0:00:16.3]} 37. Qe6 {[%clk 0:00:10.8]} 37... Nxc5 {[%clk
0:00:11]} 38. Qxc8 {[%clk 0:00:07.2]} 38... Qxd2 {[%clk 0:00:11.4]} 39. Qxc5
{[%clk 0:00:07.1]} 39... Bd4 {[%clk 0:00:11.4]} 40. Ng5+ {[%clk 0:00:06.6]}
40... hxg5 {[%clk 0:00:10]} 41. Qe7+ {[%clk 0:00:06.1]} 41... Kh6 {[%clk
0:00:04.4]} 42. Qf8+ {[%clk 0:00:05.8]} 42... Kh5 {[%clk 0:00:03.7]} 43. Qh8+
{[%clk 0:00:05.3]} 43... Bxh8 {[%clk 0:00:03.1]} 0-1